Workbook

Sheet Produktu pārdošanas atskaite
B1: Atskaite par produktu pārdošanu
B20: Produkti

Sheet Vēsturiskie dati
B1: Vēsturiskā produktu cenu lapa un pārdošanas rezultāti
B3: Produkta ID | C3: Produkta nosaukums | D3: Cenas datums | E3: Mazumtirdzniecības cena par vienību | F3: Vairumtirdzniecības cena par vienību* | G3: Pārdotās vienības (mazumtirdzn.) | H3: Pārdotās vienības (vairumtirdzn.) | I3: Kopā pārdots (skaits) | J3: Kopā pārdots (nauda)
B4: 5 | C4: =IFERROR(IF(tabula_pārdošana[[#This Row],[Produkta ID]]<>"",VLOOKUP(tabula_pārdošana[Produkta ID],tabula_produkti[[Produkta ID]:[Nosaukums]],2,FALSE),""),"Unknown Product ID") -> Īsbikses | D4: 2012-01-01 | E4: 20 | F4: 20 | G4: 629 | H4: 1254 | I4: =tabula_pārdošana[[#This Row],[Pārdotās vienības (mazumtirdzn.)]]+tabula_pārdošana[[#This Row],[Pārdotās vienības (vairumtirdzn.)]] -> 1883 | J4: =tabula_pārdošana[[#This Row],[Pārdotās vienības (mazumtirdzn.)]]*tabula_pārdošana[[#This Row],[Mazumtirdzniecības cena par vienību]]+tabula_pārdošana[[#This Row],[Pārdotās vienības (vairumtirdzn.)]]*tabula_pārdošana[[#This Row],[Vairumtirdzniecības cena par vienību*]] -> 37660
B5: 1 | C5: =IFERROR(IF(tabula_pārdošana[[#This Row],[Produkta ID]]<>"",VLOOKUP(tabula_pārdošana[Produkta ID],tabula_produkti[[Produkta ID]:[Nosaukums]],2,FALSE),""),"Unknown Product ID") -> Krekli | D5: 2012-01-01 | E5: 88 | F5: 54 | G5: 734 | H5: 1427 | I5: =tabula_pārdošana[[#This Row],[Pārdotās vienības (mazumtirdzn.)]]+tabula_pārdošana[[#This Row],[Pārdotās vienības (vairumtirdzn.)]] -> 2161 | J5: =tabula_pārdošana[[#This Row],[Pārdotās vienības (mazumtirdzn.)]]*tabula_pārdošana[[#This Row],[Mazumtirdzniecības cena par vienību]]+tabula_pārdošana[[#This Row],[Pārdotās vienības (vairumtirdzn.)]]*tabula_pārdošana[[#This Row],[Vairumtirdzniecības cena par vienību*]] -> 141650
B6: 2 | C6: =IFERROR(IF(tabula_pārdošana[[#This Row],[Produkta ID]]<>"",VLOOKUP(tabula_pārdošana[Produkta ID],tabula_produkti[[Produkta ID]:[Nosaukums]],2,FALSE),""),"Unknown Product ID") -> Sandales | D6: 2012-01-01 | E6: 70 | F6: 44 | G6: 744 | H6: 1043 | I6: =tabula_pārdošana[[#This Row],[Pārdotās vienības (mazumtirdzn.)]]+tabula_pārdošana[[#This Row],[Pārdotās vienības (vairumtirdzn.)]] -> 1787 | J6: =tabula_pārdošana[[#This Row],[Pārdotās vienības (mazumtirdzn.)]]*tabula_pārdošana[[#This Row],[Mazumtirdzniecības cena par vienību]]+tabula_pārdošana[[#This Row],[Pārdotās vienības (vairumtirdzn.)]]*tabula_pārdošana[[#This Row],[Vairumtirdzniecības cena par vienību*]] -> 97972
B7: 3 | C7: =IFERROR(IF(tabula_pārdošana[[#This Row],[Produkta ID]]<>"",VLOOKUP(tabula_pārdošana[Produkta ID],tabula_produkti[[Produkta ID]:[Nosaukums]],2,FALSE),""),"Unknown Product ID") -> Saulessargi | D7: 2012-01-01 | E7: 63 | F7: 44 | G7: 681 | H7: 1523 | I7: =tabula_pārdošana[[#This Row],[Pārdotās vienības (mazumtirdzn.)]]+tabula_pārdošana[[#This Row],[Pārdotās vienības (vairumtirdzn.)]] -> 2204 | J7: =tabula_pārdošana[[#This Row],[Pārdotās vienības (mazumtirdzn.)]]*tabula_pārdošana[[#This Row],[Mazumtirdzniecības cena par vienību]]+tabula_pārdošana[[#This Row],[Pārdotās vienības (vairumtirdzn.)]]*tabula_pārdošana[[#This Row],[Vairumtirdzniecības cena par vienību*]] -> 109915
B8: 4 | C8: =IFERROR(IF(tabula_pārdošana[[#This Row],[Produkta ID]]<>"",VLOOKUP(tabula_pārdošana[Produkta ID],tabula_produkti[[Produkta ID]:[Nosaukums]],2,FALSE),""),"Unknown Product ID") -> Ūdens pudeles | D8: 2012-01-01 | E8: 35 | F8: 27 | G8: 602 | H8: 1822 | I8: =tabula_pārdošana[[#This Row],[Pārdotās vienības (mazumtirdzn.)]]+tabula_pārdošana[[#This Row],[Pārdotās vienības (vairumtirdzn.)]] -> 2424 | J8: =tabula_pārdošana[[#This Row],[Pārdotās vienības (mazumtirdzn.)]]*tabula_pārdošana[[#This Row],[Mazumtirdzniecības cena par vienību]]+tabula_pārdošana[[#This Row],[Pārdotās vienības (vairumtirdzn.)]]*tabula_pārdošana[[#This Row],[Vairumtirdzniecības cena par vienību*]] -> 70264
B9: 1 | C9: =IFERROR(IF(tabula_pārdošana[[#This Row],[Produkta ID]]<>"",VLOOKUP(tabula_pārdošana[Produkta ID],tabula_produkti[[Produkta ID]:[Nosaukums]],2,FALSE),""),"Unknown Product ID") -> Krekli | D9: 2012-02-01 | E9: 55 | F9: 44 | G9: 678 | H9: 1515 | I9: =tabula_pārdošana[[#This Row],[Pārdotās vienības (mazumtirdzn.)]]+tabula_pārdošana[[#This Row],[Pārdotās vienības (vairumtirdzn.)]] -> 2193 | J9: =tabula_pārdošana[[#This Row],[Pārdotās vienības (mazumtirdzn.)]]*tabula_pārdošana[[#This Row],[Mazumtirdzniecības cena par vienību]]+tabula_pārdošana[[#This Row],[Pārdotās vienības (vairumtirdzn.)]]*tabula_pārdošana[[#This Row],[Vairumtirdzniecības cena par vienību*]] -> 103950
B10: 2 | C10: =IFERROR(IF(tabula_pārdošana[[#This Row],[Produkta ID]]<>"",VLOOKUP(tabula_pārdošana[Produkta ID],tabula_produkti[[Produkta ID]:[Nosaukums]],2,FALSE),""),"Unknown Product ID") -> Sandales | D10: 2012-02-01 | E10: 83 | F10: 54 | G10: 753 | H10: 1005 | I10: =tabula_pārdošana[[#This Row],[Pārdotās vienības (mazumtirdzn.)]]+tabula_pārdošana[[#This Row],[Pārdotās vienības (vairumtirdzn.)]] -> 1758 | J10: =tabula_pārdošana[[#This Row],[Pārdotās vienības (mazumtirdzn.)]]*tabula_pārdošana[[#This Row],[Mazumtirdzniecības cena par vienību]]+tabula_pārdošana[[#This Row],[Pārdotās vienības (vairumtirdzn.)]]*tabula_pārdošana[[#This Row],[Vairumtirdzniecības cena par vienību*]] -> 116769
B11: 3 | C11: =IFERROR(IF(tabula_pārdošana[[#This Row],[Produkta ID]]<>"",VLOOKUP(tabula_pārdošana[Produkta ID],tabula_produkti[[Produkta ID]:[Nosaukums]],2,FALSE),""),"Unknown Product ID") -> Saulessargi | D11: 2012-02-01 | E11: 34 | F11: 34 | G11: 986 | H11: 1069 | I11: =tabula_pārdošana[[#This Row],[Pārdotās vienības (mazumtirdzn.)]]+tabula_pārdošana[[#This Row],[Pārdotās vienības (vairumtirdzn.)]] -> 2055 | J11: =tabula_pārdošana[[#This Row],[Pārdotās vienības (mazumtirdzn.)]]*tabula_pārdošana[[#This Row],[Mazumtirdzniecības cena par vienību]]+tabula_pārdošana[[#This Row],[Pārdotās vienības (vairumtirdzn.)]]*tabula_pārdošana[[#This Row],[Vairumtirdzniecības cena par vienību*]] -> 69870
B12: 4 | C12: =IFERROR(IF(tabula_pārdošana[[#This Row],[Produkta ID]]<>"",VLOOKUP(tabula_pārdošana[Produkta ID],tabula_produkti[[Produkta ID]:[Nosaukums]],2,FALSE),""),"Unknown Product ID") -> Ūdens pudeles | D12: 2012-02-01 | E12: 35 | F12: 25 | G12: 848 | H12: 1211 | I12: =tabula_pārdošana[[#This Row],[Pārdotās vienības (mazumtirdzn.)]]+tabula_pārdošana[[#This Row],[Pārdotās vienības (vairumtirdzn.)]] -> 2059 | J12: =tabula_pārdošana[[#This Row],[Pārdotās vienības (mazumtirdzn.)]]*tabula_pārdošana[[#This Row],[Mazumtirdzniecības cena par vienību]]+tabula_pārdošana[[#This Row],[Pārdotās vienības (vairumtirdzn.)]]*tabula_pārdošana[[#This Row],[Vairumtirdzniecības cena par vienību*]] -> 59955
B13: 5 | C13: =IFERROR(IF(tabula_pārdošana[[#This Row],[Produkta ID]]<>"",VLOOKUP(tabula_pārdošana[Produkta ID],tabula_produkti[[Produkta ID]:[Nosaukums]],2,FALSE),""),"Unknown Product ID") -> Īsbikses | D13: 2012-02-01 | E13: 41 | F13: 38 | G13: 980 | H13: 1330 | I13: =tabula_pārdošana[[#This Row],[Pārdotās vienības (mazumtirdzn.)]]+tabula_pārdošana[[#This Row],[Pārdotās vienības (vairumtirdzn.)]] -> 2310 | J13: =tabula_pārdošana[[#This Row],[Pārdotās vienības (mazumtirdzn.)]]*tabula_pārdošana[[#This Row],[Mazumtirdzniecības cena par vienību]]+tabula_pārdošana[[#This Row],[Pārdotās vienības (vairumtirdzn.)]]*tabula_pārdošana[[#This Row],[Vairumtirdzniecības cena par vienību*]] -> 90720
B14: 1 | C14: =IFERROR(IF(tabula_pārdošana[[#This Row],[Produkta ID]]<>"",VLOOKUP(tabula_pārdošana[Produkta ID],tabula_produkti[[Produkta ID]:[Nosaukums]],2,FALSE),""),"Unknown Product ID") -> Krekli | D14: 2012-02-29 | E14: 27 | F14: 18 | G14: 533 | H14: 1936 | I14: =tabula_pārdošana[[#This Row],[Pārdotās vienības (mazumtirdzn.)]]+tabula_pārdošana[[#This Row],[Pārdotās vienības (vairumtirdzn.)]] -> 2469 | J14: =tabula_pārdošana[[#This Row],[Pārdotās vienības (mazumtirdzn.)]]*tabula_pārdošana[[#This Row],[Mazumtirdzniecības cena par vienību]]+tabula_pārdošana[[#This Row],[Pārdotās vienības (vairumtirdzn.)]]*tabula_pārdošana[[#This Row],[Vairumtirdzniecības cena par vienību*]] -> 49239
B15: 2 | C15: =IFERROR(IF(tabula_pārdošana[[#This Row],[Produkta ID]]<>"",VLOOKUP(tabula_pārdošana[Produkta ID],tabula_produkti[[Produkta ID]:[Nosaukums]],2,FALSE),""),"Unknown Product ID") -> Sandales | D15: 2012-02-29 | E15: 38 | F15: 28 | G15: 952 | H15: 1512 | I15: =tabula_pārdošana[[#This Row],[Pārdotās vienības (mazumtirdzn.)]]+tabula_pārdošana[[#This Row],[Pārdotās vienības (vairumtirdzn.)]] -> 2464 | J15: =tabula_pārdošana[[#This Row],[Pārdotās vienības (mazumtirdzn.)]]*tabula_pārdošana[[#This Row],[Mazumtirdzniecības cena par vienību]]+tabula_pārdošana[[#This Row],[Pārdotās vienības (vairumtirdzn.)]]*tabula_pārdošana[[#This Row],[Vairumtirdzniecības cena par vienību*]] -> 78512
B16: 3 | C16: =IFERROR(IF(tabula_pārdošana[[#This Row],[Produkta ID]]<>"",VLOOKUP(tabula_pārdošana[Produkta ID],tabula_produkti[[Produkta ID]:[Nosaukums]],2,FALSE),""),"Unknown Product ID") -> Saulessargi | D16: 2012-02-29 | E16: 92 | F16: 92 | G16: 956 | H16: 1266 | I16: =tabula_pārdošana[[#This Row],[Pārdotās vienības (mazumtirdzn.)]]+tabula_pārdošana[[#This Row],[Pārdotās vienības (vairumtirdzn.)]] -> 2222 | J16: =tabula_pārdošana[[#This Row],[Pārdotās vienības (mazumtirdzn.)]]*tabula_pārdošana[[#This Row],[Mazumtirdzniecības cena par vienību]]+tabula_pārdošana[[#This Row],[Pārdotās vienības (vairumtirdzn.)]]*tabula_pārdošana[[#This Row],[Vairumtirdzniecības cena par vienību*]] -> 204424
B17: 4 | C17: =IFERROR(IF(tabula_pārdošana[[#This Row],[Produkta ID]]<>"",VLOOKUP(tabula_pārdošana[Produkta ID],tabula_produkti[[Produkta ID]:[Nosaukums]],2,FALSE),""),"Unknown Product ID") -> Ūdens pudeles | D17: 2012-02-29 | E17: 43 | F17: 36 | G17: 952 | H17: 1390 | I17: =tabula_pārdošana[[#This Row],[Pārdotās vienības (mazumtirdzn.)]]+tabula_pārdošana[[#This Row],[Pārdotās vienības (vairumtirdzn.)]] -> 2342 | J17: =tabula_pārdošana[[#This Row],[Pārdotās vienības (mazumtirdzn.)]]*tabula_pārdošana[[#This Row],[Mazumtirdzniecības cena par vienību]]+tabula_pārdošana[[#This Row],[Pārdotās vienības (vairumtirdzn.)]]*tabula_pārdošana[[#This Row],[Vairumtirdzniecības cena par vienību*]] -> 90976
B18: 5 | C18: =IFERROR(IF(tabula_pārdošana[[#This Row],[Produkta ID]]<>"",VLOOKUP(tabula_pārdošana[Produkta ID],tabula_produkti[[Produkta ID]:[Nosaukums]],2,FALSE),""),"Unknown Product ID") -> Īsbikses | D18: 2012-02-29 | E18: 98 | F18: 73 | G18: 530 | H18: 1452 | I18: =tabula_pārdošana[[#This Row],[Pārdotās vienības (mazumtirdzn.)]]+tabula_pārdošana[[#This Row],[Pārdotās vienības (vairumtirdzn.)]] -> 1982 | J18: =tabula_pārdošana[[#This Row],[Pārdotās vienības (mazumtirdzn.)]]*tabula_pārdošana[[#This Row],[Mazumtirdzniecības cena par vienību]]+tabula_pārdošana[[#This Row],[Pārdotās vienības (vairumtirdzn.)]]*tabula_pārdošana[[#This Row],[Vairumtirdzniecības cena par vienību*]] -> 157936
B19: 1 | C19: =IFERROR(IF(tabula_pārdošana[[#This Row],[Produkta ID]]<>"",VLOOKUP(tabula_pārdošana[Produkta ID],tabula_produkti[[Produkta ID]:[Nosaukums]],2,FALSE),""),"Unknown Product ID") -> Krekli | D19: 2012-03-31 | E19: 38 | F19: 28 | G19: 973 | H19: 1415 | I19: =tabula_pārdošana[[#This Row],[Pārdotās vienības (mazumtirdzn.)]]+tabula_pārdošana[[#This Row],[Pārdotās vienības (vairumtirdzn.)]] -> 2388 | J19: =tabula_pārdošana[[#This Row],[Pārdotās vienības (mazumtirdzn.)]]*tabula_pārdošana[[#This Row],[Mazumtirdzniecības cena par vienību]]+tabula_pārdošana[[#This Row],[Pārdotās vienības (vairumtirdzn.)]]*tabula_pārdošana[[#This Row],[Vairumtirdzniecības cena par vienību*]] -> 76594
B20: 2 | C20: =IFERROR(IF(tabula_pārdošana[[#This Row],[Produkta ID]]<>"",VLOOKUP(tabula_pārdošana[Produkta ID],tabula_produkti[[Produkta ID]:[Nosaukums]],2,FALSE),""),"Unknown Product ID") -> Sandales | D20: 2012-03-31 | E20: 50 | F20: 36 | G20: 672 | H20: 1105 | I20: =tabula_pārdošana[[#This Row],[Pārdotās vienības (mazumtirdzn.)]]+tabula_pārdošana[[#This Row],[Pārdotās vienības (vairumtirdzn.)]] -> 1777 | J20: =tabula_pārdošana[[#This Row],[Pārdotās vienības (mazumtirdzn.)]]*tabula_pārdošana[[#This Row],[Mazumtirdzniecības cena par vienību]]+tabula_pārdošana[[#This Row],[Pārdotās vienības (vairumtirdzn.)]]*tabula_pārdošana[[#This Row],[Vairumtirdzniecības cena par vienību*]] -> 73380
B21: 3 | C21: =IFERROR(IF(tabula_pārdošana[[#This Row],[Produkta ID]]<>"",VLOOKUP(tabula_pārdošana[Produkta ID],tabula_produkti[[Produkta ID]:[Nosaukums]],2,FALSE),""),"Unknown Product ID") -> Saulessargi | D21: 2012-03-31 | E21: 24 | F21: 23 | G21: 769 | H21: 1629 | I21: =tabula_pārdošana[[#This Row],[Pārdotās vienības (mazumtirdzn.)]]+tabula_pārdošana[[#This Row],[Pārdotās vienības (vairumtirdzn.)]] -> 2398 | J21: =tabula_pārdošana[[#This Row],[Pārdotās vienības (mazumtirdzn.)]]*tabula_pārdošana[[#This Row],[Mazumtirdzniecības cena par vienību]]+tabula_pārdošana[[#This Row],[Pārdotās vienības (vairumtirdzn.)]]*tabula_pārdošana[[#This Row],[Vairumtirdzniecības cena par vienību*]] -> 55923
B22: 4 | C22: =IFERROR(IF(tabula_pārdošana[[#This Row],[Produkta ID]]<>"",VLOOKUP(tabula_pārdošana[Produkta ID],tabula_produkti[[Produkta ID]:[Nosaukums]],2,FALSE),""),"Unknown Product ID") -> Ūdens pudeles | D22: 2012-03-31 | E22: 72 | F22: 57 | G22: 985 | H22: 1848 | I22: =tabula_pārdošana[[#This Row],[Pārdotās vienības (mazumtirdzn.)]]+tabula_pārdošana[[#This Row],[Pārdotās vienības (vairumtirdzn.)]] -> 2833 | J22: =tabula_pārdošana[[#This Row],[Pārdotās vienības (mazumtirdzn.)]]*tabula_pārdošana[[#This Row],[Mazumtirdzniecības cena par vienību]]+tabula_pārdošana[[#This Row],[Pārdotās vienības (vairumtirdzn.)]]*tabula_pārdošana[[#This Row],[Vairumtirdzniecības cena par vienību*]] -> 176256
B23: 5 | C23: =IFERROR(IF(tabula_pārdošana[[#This Row],[Produkta ID]]<>"",VLOOKUP(tabula_pārdošana[Produkta ID],tabula_produkti[[Produkta ID]:[Nosaukums]],2,FALSE),""),"Unknown Product ID") -> Īsbikses | D23: 2012-03-31 | E23: 85 | F23: 43 | G23: 721 | H23: 1426 | I23: =tabula_pārdošana[[#This Row],[Pārdotās vienības (mazumtirdzn.)]]+tabula_pārdošana[[#This Row],[Pārdotās vienības (vairumtirdzn.)]] -> 2147 | J23: =tabula_pārdošana[[#This Row],[Pārdotās vienības (mazumtirdzn.)]]*tabula_pārdošana[[#This Row],[Mazumtirdzniecības cena par vienību]]+tabula_pārdošana[[#This Row],[Pārdotās vienības (vairumtirdzn.)]]*tabula_pārdošana[[#This Row],[Vairumtirdzniecības cena par vienību*]] -> 122603
B24: 1 | C24: =IFERROR(IF(tabula_pārdošana[[#This Row],[Produkta ID]]<>"",VLOOKUP(tabula_pārdošana[Produkta ID],tabula_produkti[[Produkta ID]:[Nosaukums]],2,FALSE),""),"Unknown Product ID") -> Krekli | D24: 2012-04-30 | E24: 91 | F24: 65 | G24: 603 | H24: 1226 | I24: =tabula_pārdošana[[#This Row],[Pārdotās vienības (mazumtirdzn.)]]+tabula_pārdošana[[#This Row],[Pārdotās vienības (vairumtirdzn.)]] -> 1829 | J24: =tabula_pārdošana[[#This Row],[Pārdotās vienības (mazumtirdzn.)]]*tabula_pārdošana[[#This Row],[Mazumtirdzniecības cena par vienību]]+tabula_pārdošana[[#This Row],[Pārdotās vienības (vairumtirdzn.)]]*tabula_pārdošana[[#This Row],[Vairumtirdzniecības cena par vienību*]] -> 134563
B25: 2 | C25: =IFERROR(IF(tabula_pārdošana[[#This Row],[Produkta ID]]<>"",VLOOKUP(tabula_pārdošana[Produkta ID],tabula_produkti[[Produkta ID]:[Nosaukums]],2,FALSE),""),"Unknown Product ID") -> Sandales | D25: 2012-04-30 | E25: 91 | F25: 55 | G25: 892 | H25: 1823 | I25: =tabula_pārdošana[[#This Row],[Pārdotās vienības (mazumtirdzn.)]]+tabula_pārdošana[[#This Row],[Pārdotās vienības (vairumtirdzn.)]] -> 2715 | J25: =tabula_pārdošana[[#This Row],[Pārdotās vienības (mazumtirdzn.)]]*tabula_pārdošana[[#This Row],[Mazumtirdzniecības cena par vienību]]+tabula_pārdošana[[#This Row],[Pārdotās vienības (vairumtirdzn.)]]*tabula_pārdošana[[#This Row],[Vairumtirdzniecības cena par vienību*]] -> 181437
B26: 3 | C26: =IFERROR(IF(tabula_pārdošana[[#This Row],[Produkta ID]]<>"",VLOOKUP(tabula_pārdošana[Produkta ID],tabula_produkti[[Produkta ID]:[Nosaukums]],2,FALSE),""),"Unknown Product ID") -> Saulessargi | D26: 2012-04-30 | E26: 42 | F26: 42 | G26: 611 | H26: 1181 | I26: =tabula_pārdošana[[#This Row],[Pārdotās vienības (mazumtirdzn.)]]+tabula_pārdošana[[#This Row],[Pārdotās vienības (vairumtirdzn.)]] -> 1792 | J26: =tabula_pārdošana[[#This Row],[Pārdotās vienības (mazumtirdzn.)]]*tabula_pārdošana[[#This Row],[Mazumtirdzniecības cena par vienību]]+tabula_pārdošana[[#This Row],[Pārdotās vienības (vairumtirdzn.)]]*tabula_pārdošana[[#This Row],[Vairumtirdzniecības cena par vienību*]] -> 75264
B27: 4 | C27: =IFERROR(IF(tabula_pārdošana[[#This Row],[Produkta ID]]<>"",VLOOKUP(tabula_pārdošana[Produkta ID],tabula_produkti[[Produkta ID]:[Nosaukums]],2,FALSE),""),"Unknown Product ID") -> Ūdens pudeles | D27: 2012-04-30 | E27: 85 | F27: 43 | G27: 530 | H27: 1039 | I27: =tabula_pārdošana[[#This Row],[Pārdotās vienības (mazumtirdzn.)]]+tabula_pārdošana[[#This Row],[Pārdotās vienības (vairumtirdzn.)]] -> 1569 | J27: =tabula_pārdošana[[#This Row],[Pārdotās vienības (mazumtirdzn.)]]*tabula_pārdošana[[#This Row],[Mazumtirdzniecības cena par vienību]]+tabula_pārdošana[[#This Row],[Pārdotās vienības (vairumtirdzn.)]]*tabula_pārdošana[[#This Row],[Vairumtirdzniecības cena par vienību*]] -> 89727
B28: 5 | C28: =IFERROR(IF(tabula_pārdošana[[#This Row],[Produkta ID]]<>"",VLOOKUP(tabula_pārdošana[Produkta ID],tabula_produkti[[Produkta ID]:[Nosaukums]],2,FALSE),""),"Unknown Product ID") -> Īsbikses | D28: 2012-04-30 | E28: 82 | F28: 71 | G28: 716 | H28: 1249 | I28: =tabula_pārdošana[[#This Row],[Pārdotās vienības (mazumtirdzn.)]]+tabula_pārdošana[[#This Row],[Pārdotās vienības (vairumtirdzn.)]] -> 1965 | J28: =tabula_pārdošana[[#This Row],[Pārdotās vienības (mazumtirdzn.)]]*tabula_pārdošana[[#This Row],[Mazumtirdzniecības cena par vienību]]+tabula_pārdošana[[#This Row],[Pārdotās vienības (vairumtirdzn.)]]*tabula_pārdošana[[#This Row],[Vairumtirdzniecības cena par vienību*]] -> 147391
B29: 1 | C29: =IFERROR(IF(tabula_pārdošana[[#This Row],[Produkta ID]]<>"",VLOOKUP(tabula_pārdošana[Produkta ID],tabula_produkti[[Produkta ID]:[Nosaukums]],2,FALSE),""),"Unknown Product ID") -> Krekli | D29: 2012-05-14 | E29: 34 | F29: 31 | G29: 850 | H29: 1548 | I29: =tabula_pārdošana[[#This Row],[Pārdotās vienības (mazumtirdzn.)]]+tabula_pārdošana[[#This Row],[Pārdotās vienības (vairumtirdzn.)]] -> 2398 | J29: =tabula_pārdošana[[#This Row],[Pārdotās vienības (mazumtirdzn.)]]*tabula_pārdošana[[#This Row],[Mazumtirdzniecības cena par vienību]]+tabula_pārdošana[[#This Row],[Pārdotās vienības (vairumtirdzn.)]]*tabula_pārdošana[[#This Row],[Vairumtirdzniecības cena par vienību*]] -> 76888
B30: 2 | C30: =IFERROR(IF(tabula_pārdošana[[#This Row],[Produkta ID]]<>"",VLOOKUP(tabula_pārdošana[Produkta ID],tabula_produkti[[Produkta ID]:[Nosaukums]],2,FALSE),""),"Unknown Product ID") -> Sandales | D30: 2012-05-14 | E30: 64 | F30: 40 | G30: 876 | H30: 1663 | I30: =tabula_pārdošana[[#This Row],[Pārdotās vienības (mazumtirdzn.)]]+tabula_pārdošana[[#This Row],[Pārdotās vienības (vairumtirdzn.)]] -> 2539 | J30: =tabula_pārdošana[[#This Row],[Pārdotās vienības (mazumtirdzn.)]]*tabula_pārdošana[[#This Row],[Mazumtirdzniecības cena par vienību]]+tabula_pārdošana[[#This Row],[Pārdotās vienības (vairumtirdzn.)]]*tabula_pārdošana[[#This Row],[Vairumtirdzniecības cena par vienību*]] -> 122584
B31: 3 | C31: =IFERROR(IF(tabula_pārdošana[[#This Row],[Produkta ID]]<>"",VLOOKUP(tabula_pārdošana[Produkta ID],tabula_produkti[[Produkta ID]:[Nosaukums]],2,FALSE),""),"Unknown Product ID") -> Saulessargi | D31: 2012-05-14 | E31: 33 | F31: 30 | G31: 881 | H31: 1149 | I31: =tabula_pārdošana[[#This Row],[Pārdotās vienības (mazumtirdzn.)]]+tabula_pārdošana[[#This Row],[Pārdotās vienības (vairumtirdzn.)]] -> 2030 | J31: =tabula_pārdošana[[#This Row],[Pārdotās vienības (mazumtirdzn.)]]*tabula_pārdošana[[#This Row],[Mazumtirdzniecības cena par vienību]]+tabula_pārdošana[[#This Row],[Pārdotās vienības (vairumtirdzn.)]]*tabula_pārdošana[[#This Row],[Vairumtirdzniecības cena par vienību*]] -> 63543
B32: 4 | C32: =IFERROR(IF(tabula_pārdošana[[#This Row],[Produkta ID]]<>"",VLOOKUP(tabula_pārdošana[Produkta ID],tabula_produkti[[Produkta ID]:[Nosaukums]],2,FALSE),""),"Unknown Product ID") -> Ūdens pudeles | D32: 2012-05-14 | E32: 29 | F32: 27 | G32: 802 | H32: 1548 | I32: =tabula_pārdošana[[#This Row],[Pārdotās vienības (mazumtirdzn.)]]+tabula_pārdošana[[#This Row],[Pārdotās vienības (vairumtirdzn.)]] -> 2350 | J32: =tabula_pārdošana[[#This Row],[Pārdotās vienības (mazumtirdzn.)]]*tabula_pārdošana[[#This Row],[Mazumtirdzniecības cena par vienību]]+tabula_pārdošana[[#This Row],[Pārdotās vienības (vairumtirdzn.)]]*tabula_pārdošana[[#This Row],[Vairumtirdzniecības cena par vienību*]] -> 65054
B33: 5 | C33: =IFERROR(IF(tabula_pārdošana[[#This Row],[Produkta ID]]<>"",VLOOKUP(tabula_pārdošana[Produkta ID],tabula_produkti[[Produkta ID]:[Nosaukums]],2,FALSE),""),"Unknown Product ID") -> Īsbikses | D33: 2013-12-11 | E33: 24 | F33: 15 | G33: 824 | H33: 1994 | I33: =tabula_pārdošana[[#This Row],[Pārdotās vienības (mazumtirdzn.)]]+tabula_pārdošana[[#This Row],[Pārdotās vienības (vairumtirdzn.)]] -> 2818 | J33: =tabula_pārdošana[[#This Row],[Pārdotās vienības (mazumtirdzn.)]]*tabula_pārdošana[[#This Row],[Mazumtirdzniecības cena par vienību]]+tabula_pārdošana[[#This Row],[Pārdotās vienības (vairumtirdzn.)]]*tabula_pārdošana[[#This Row],[Vairumtirdzniecības cena par vienību*]] -> 49686

Sheet Cenrādis
B1: Produktu cenu lapa
B3: Adventure Works
B4: Kļavu iela 239
B5: Jelgava, LV-9999
B6: Tālr: 55 550 150
B7: Fakss: 55 550 159
B8: www.adventure-works.com | F8: Pēdējais atjauninājums 2013.08.15.
B10: Produkta ID | C10: Nosaukums | D10: Apraksts | E10: Mazumtirdzniecības cena par vienību | F10: Vairumtirdzniecības cena par vienību*
B11: 1 | C11: Krekli | D11: Praktisks un stilīgs krekls ar dekoratīvu burzījumu no 100% kokvilnas. | E11: 22 | F11: 15
B12: 2 | C12: Sandales | D12: Ja jums kājās ir mūsu sandales ar izturīgo gumijas zoli, tad staigāšana pa viskarstākajām smiltīm tāds nieks vien ir. | E12: 10 | F12: 6
B13: 3 | C13: Saulessargi | D13: Paslēpieties no svilinošās saules zem mūsu īpaši lielā pludmales saulessarga, kas aiztur 96% no kaitīgā UV starojuma. | E13: 30 | F13: 20
B14: 4 | C14: Ūdens pudeles | D14: Veldzējiet slāpes ar perfektas temperatūras ūdeni, ko spēj nodrošināt tikai mūsu izolētā ūdens pudele. | E14: 7 | F14: 5
B15: 5 | C15: Īsbikses | D15: Tūliņ pēc peldes droši kāpiet automašīnā, ja vien jums kājās ir īpaši ātri žūstošās neilona īsbikses. | E15: 15 | F15: 8
F17: Zvaniet mums, ja prece nav minēta sarakstā.
F18: *Vairumtirdzniecības cenas attiecas tad, ja tiek pirktas 12 vai vairāk preču.

Sheet Cenas punkta rakurss (hidden)
B1: Cenas punkta rakurstabula
B2: Šī lapa jāsaglabā paslēpta. Jebkādas izmaiņas tālāk esošajā rakurstabulā var izraisīt nepareizus datus produktu pārdošanas atskaitē.
B3: Atlasītais produkts: | C3: =IF(LEN(B5),B5,"Nav") -> Sandales
B4: Produkta nosaukums | C4: Mazumtirdzniecības cena par vienību | D4: Sum of Kopā pārdots (skaits)
B5: Sandales | C5: 38 | D5: 2464
C6: 50 | D6: 1777
C7: 64 | D7: 2539
C8: 70 | D8: 1787
C9: 83 | D9: 1758
C10: 91 | D10: 2715

Sheet Pārdošanas tendenču rakurss (hidden)
B1: Pārdošanas tendences rakurstabula
B2: Šī lapa jāsaglabā paslēpta. Jebkādas izmaiņas tālāk esošajā rakurstabulā var izraisīt nepareizus datus produktu pārdošanas atskaitē.
B3: Sum of Kopā pārdots (skaits) | C3: Produkta nosaukums
B4: Cenas datums | C4: Sandales
B5: jan | C5: 1787
B6: feb | C6: 4222
B7: mar | C7: 1777
B8: apr | C8: 2715
B9: mai | C9: 2539
